bitfinex/quotes_ETHUSD_20251015
["timestamp","ask_amount","ask_price","bid_price","bid_amount"]
[1760545546693,2.49718368,4004.6,4003.1,3.14912426]
[1760545546908,2.49718368,4004.6,4003.5,2.49781441]
[1760545546909,0.1248,4003.6,4003.5,2.49781441]
[1760545547114,0.1248,4003.6,4003.5,2.93271441]
[1760545547443,0.1248,4003.6,4003.1,0.2162]
[1760545547721,0.1282,4003.8,4003.1,2.49801671]
[1760545547906,2.6258398,4003.8,4003.1,2.49801671]
[1760545548109,2.6258398,4003.8,4003.0,2.49808266]
[1760545548110,0.1248,4003.1,4003.0,2.49808266]
[1760545548626,0.1248,4003.1,4003.0,2.4981264]
[1760545549387,0.1248,4003.1,4002.6,0.2181]
[1760545549588,0.1248,4002.9,4002.6,0.2181]
[1760545549794,0.1248,4002.7,4002.6,2.71647605]
[1760545550414,0.1248,4002.7,4002.6,3.15137605]
[1760545551228,0.1248,4002.7,4002.6,2.49837605]
[1760545551440,0.1248,4002.7,4002.6,2.93327605]
[1760545552012,0.001,4004.4,4002.6,2.93327605]
[1760545552214,0.1248,4003.7,4003.6,2.49775202]
[1760545552437,0.1248,4003.7,4003.2,0.2162]
[1760545552612,2.49825594,4004.4,4003.7,2.49767989]
[1760545552813,0.1248,4003.5,4003.4,2.4978768]
[1760545553132,0.1248,4003.5,4003.4,2.9327768]
[1760545553329,0.001,4004.4,4003.9,2.49753959]
[1760545553530,0.001,4004.4,4003.9,2.4975648]
[1760545553837,0.1248,4003.9,4003.4,0.4349]
[1760545554037,0.001,4004.4,4003.9,2.49755387]
[1760545554247,0.001,4004.4,4003.7,2.49768085]
[1760545554439,0.001,4004.4,4004.0,2.49749894]
[1760545554617,0.1248,4003.7,4003.6,2.49775202]
[1760545554822,0.1248,4003.7,4003.6,2.94175202]
[1760545555341,0.1258,4004.4,4004.3,2.49731538]
[1760545555841,0.1258,4004.4,4004.3,2.94131538]
[1760545556042,0.001,4004.4,4004.3,2.94131538]
[1760545557139,0.001,4004.4,4004.3,4.66931538]
[1760545557343,0.1598,4006.2,4004.3,2.19697315]
[1760545557681,0.3773,4006.6,4005.9,2.49625955]
[1760545557849,0.3773,4006.6,4006.0,2.49619637]
[1760545558032,0.3773,4006.6,4005.7,0.2171]
[1760545558235,0.2308,4006.8,4005.7,0.2171]
[1760545558441,0.2308,4006.8,4005.9,2.49630408]
[1760545558732,0.3091,4006.7,4005.2,1.728]
[1760545558911,0.3091,4006.7,4005.1,1.728]
[1760545558912,2.49605031,4006.4,4005.6,2.49645543]
[1760545559113,2.49595955,4006.5,4005.7,2.49641415]
[1760545559448,0.3091,4006.7,4005.5,10.7884537]
[1760545559648,0.2308,4006.8,4006.1,2.49616412]
[1760545559849,0.2308,4006.8,4006.0,2.49624971]
[1760545559850,1.9588,4006.8,4006.0,2.49624971]
[1760545560050,4.4546092,4006.8,4006.0,2.49624971]
[1760545560256,0.2308,4006.8,4005.9,0.2171]
[1760545560457,0.3091,4006.7,4004.6,0.444]
[1760545560606,2.4963323,4005.9,4004.5,0.2131]
[1760545560812,2.49664103,4005.4,4004.5,0.2131]
[1760545561252,0.4407,4005.7,4004.8,2.49695735]
[1760545561463,0.4407,4005.7,4004.7,2.49704741]
[1760545561762,2.49648643,4005.7,4004.7,2.49701768]
[1760545561983,2.49652945,4005.6,4004.8,2.4969916]
[1760545562330,2.49652945,4005.6,4004.9,2.49693929]
[1760545562560,2.49658463,4005.5,4004.6,4.22512283]
[1760545562764,0.098,4005.8,4004.9,2.49688357]
[1760545562936,0.098,4005.8,4004.5,0.2131]
[1760545562937,0.4407,4005.7,4004.5,0.2131]
[1760545563139,0.4407,4005.7,4003.7,0.2171]
[1760545563140,0.2308,4004.6,4003.7,0.2171]
[1760545563342,2.49719634,4004.5,4003.3,2.94193489]
[1760545563544,2.49719634,4004.5,4003.3,0.444]
[1760545563742,0.6715,4004.6,4003.4,2.49786512]
[1760545563743,2.49740664,4004.2,4003.4,2.49786512]
[1760545564039,0.4407,4004.4,4003.7,2.49767465]
[1760545564367,2.44686426,4005.1,4004.3,2.71036141]
[1760545564667,0.001,4005.6,4005.0,2.49684049]
[1760545564865,0.001,4005.6,4005.5,2.49656722]
[1760545565361,0.001,4005.6,4005.5,2.94056722]
[1760545565570,0.001,4005.6,4005.5,2.49656722]
[1760545565784,0.001,4005.6,4005.5,2.96336722]
[1760545566466,0.001,4005.6,4005.5,2.98833289]
[1760545566676,0.5183,4007.9,4007.0,2.49557521]
[1760545566878,0.4929,4007.9,4006.3,10.3444537]
[1760545567048,0.2746,4007.9,4007.1,2.4955553]
[1760545567370,0.124,4007.1,4006.6,2.49588179]
[1760545567544,0.124,4007.1,4006.9,2.49564028]
[1760545567745,0.124,4007.1,4007.0,2.49563264]
[1760545568186,0.124,4007.1,4006.4,0.8079]
[1760545568337,0.124,4006.8,4006.5,2.61095944]
[1760545568536,0.124,4006.8,4006.7,2.4958195]
[1760545568845,0.124,4007.1,4006.5,0.124]
[1760545569056,0.2746,4007.9,4006.4,0.2171]
[1760545569244,2.49532723,4007.5,4006.4,0.6839]
[1760545569462,2.49545953,4007.3,4006.4,2.7131018]
[1760545569766,2.49538942,4007.4,4006.4,0.2171]
[1760545569975,2.49529091,4007.6,4006.6,2.49584498]
[1760545570135,2.49550142,4007.3,4006.5,2.49593641]
[1760545570335,0.4326,4007.8,4006.4,0.2171]
[1760545570645,2.49539544,4007.4,4006.4,0.2171]
[1760545570834,2.49568507,4007.0,4006.0,0.2171]
[1760545571031,0.184,4006.9,4006.1,2.49618479]
[1760545571235,2.49587966,4006.7,4005.8,2.49632057]
[1760545571559,2.49587966,4006.7,4005.2,1.728]
[1760545571560,2.49586643,4006.7,4005.9,2.49629211]
[1760545571763,0.184,4006.9,4006.0,0.02496255]
[1760545572073,2.49577857,4006.8,4005.6,0.4668]
[1760545572285,2.49577857,4006.8,4006.0,2.49621386]
[1760545572438,2.67972488,4006.9,4005.9,2.49630753]
[1760545572766,0.184,4006.9,4005.6,0.4668]
[1760545572973,2.49582725,4006.7,4006.0,2.49622144]
[1760545573175,2.49582725,4006.7,4005.9,2.49630217]
[1760545573335,0.184,4006.9,4005.6,0.4668]
[1760545573673,2.67975547,4006.9,4006.0,2.49624806]
[1760545573875,3.11165547,4006.9,4006.0,2.49624806]
[1760545574075,2.49588352,4006.6,4005.8,2.49636876]
[1760545574578,2.49600022,4006.5,4005.8,2.49636931]
[1760545574780,2.49612047,4006.3,4005.3,2.7137585]
[1760545575070,2.49612047,4006.3,4005.6,2.49649035]
[1760545575271,0.4319,4006.4,4005.5,2.49654812]
[1760545575438,2.49630327,4006.0,4005.1,1.728]
[1760545575634,2.49585899,4006.7,4004.3,0.2131]
[1760545575635,0.5333,4005.9,4004.9,2.496886]
[1760545575966,2.49648239,4005.7,4004.9,2.49693291]
[1760545576168,0.5333,4005.9,4004.3,0.2131]
[1760545576369,2.49675445,4005.2,4004.5,2.49714371]
[1760545576597,0.5333,4005.9,4004.0,0.2171]
[1760545576598,0.6336,4005.4,4004.0,0.2171]
[1760545576795,0.6336,4005.2,4004.0,0.2171]
[1760545577000,2.49708132,4004.7,4004.0,2.49748771]
[1760545577294,2.7154296,4004.6,4003.9,2.49750749]
[1760545577594,2.49729891,4004.4,4003.4,2.49787195]
[1760545577798,2.49729891,4004.4,4003.0,0.2162]
[1760545577799,3.13085302,4004.4,4003.0,0.2162]
[1760545577955,0.6336,4004.2,4002.0,0.2171]
[1760545578160,3.13105009,4004.1,4002.5,2.49843434]
[1760545578380,0.6336,4004.1,4003.4,2.49781698]
[1760545578580,0.6336,4004.2,4003.4,2.49781698]
[1760545578760,0.2183,4004.6,4003.6,2.4977171]
[1760545578961,2.49720042,4004.5,4003.7,2.49766111]
[1760545579389,2.71543335,4004.6,4003.9,2.49755388]
[1760545579605,10.3444537,4006.1,4003.9,2.49755388]
[1760545579606,0.1949,4005.5,4004.0,0.02497502]
[1760545579771,2.69146934,4005.5,4004.1,0.2131]
[1760545579971,0.4302,4006.1,4005.0,2.49686806]
[1760545580282,2.49644256,4005.7,4004.9,2.49692555]
[1760545580465,0.4279,4005.6,4004.3,2.49731538]
[1760545580670,0.6336,4005.5,4004.4,2.49722022]
[1760545580979,0.6336,4005.5,4004.1,0.2131]
[1760545580980,0.4279,4005.4,4004.2,2.49737775]
[1760545581183,0.4279,4005.4,4004.7,2.4970583]
[1760545581367,0.4279,4005.4,4004.3,2.49726974]
[1760545581368,2.49682996,4005.1,4004.3,2.49726974]
[1760545581692,0.6336,4004.9,4003.7,0.4668]
[1760545581910,0.4279,4005.0,4002.6,2.49832739]
[1760545581911,0.1047,4005.9,4003.2,2.1948]
[1760545582208,0.1047,4005.9,4003.6,0.6336]
[1760545582370,0.1047,4005.9,4003.9,10.3444537]
[1760545582709,0.1047,4005.9,4004.9,0.002]
[1760545583054,1.0615,4005.8,4004.9,0.002]
[1760545583359,4.22449395,4005.7,4004.9,0.002]
[1760545583565,2.49656783,4005.5,4004.9,0.002]
[1760545583765,0.6336,4005.6,4004.9,0.002]
[1760545583976,2.4968789,4005.0,4004.9,0.002]
[1760545584381,2.9247789,4005.0,4004.9,0.002]
[1760545584876,0.4279,4005.0,4004.9,0.002]
[1760545585077,2.9247789,4005.0,4004.9,0.002]
[1760545585273,0.4279,4005.0,4004.9,0.002]
[1760545585499,0.6336,4005.7,4004.9,0.002]
[1760545585500,2.49668983,4005.4,4004.9,0.002]
[1760545585691,2.3616,4005.3,4004.9,0.002]
[1760545585895,2.7895,4005.3,4004.9,0.002]
[1760545586174,2.4968789,4005.0,4004.9,0.002]
[1760545586897,2.9247789,4005.0,4004.9,0.002]
[1760545587099,2.3616,4005.3,4004.9,0.002]
[1760545587300,2.49679011,4005.2,4004.9,0.002]
[1760545587503,3.1304789,4005.0,4004.9,0.002]
[1760545587681,4.8584789,4005.0,4004.9,0.002]
[1760545587877,5.2863789,4005.0,4004.9,0.002]
[1760545588084,4.6527789,4005.0,4004.9,0.002]
[1760545588712,5.2863789,4005.0,4004.9,0.002]
[1760545594111,4.8584789,4005.0,4004.9,0.002]
[1760545594428,5.2863789,4005.0,4004.9,0.002]
[1760545594729,4.8584789,4005.0,4004.9,0.002]
[1760545594931,1.728,4005.0,4004.9,0.002]
[1760545596097,0.5326,4005.9,4004.9,0.002]
[1760545596333,2.49638129,4005.8,4004.9,0.4467]
[1760545596490,1.728,4006.3,4004.9,0.4467]
[1760545596491,2.49660137,4005.5,4004.9,0.4467]
[1760545596696,2.49687468,4005.1,4004.9,0.002]
[1760545596896,3.1304789,4005.0,4004.9,0.002]
[1760545597126,3.4351789,4005.0,4004.9,0.002]
[1760545597506,5.1631789,4005.0,4004.9,0.002]
[1760545598889,4.8584789,4005.0,4004.9,0.002]
[1760545599094,5.1631789,4005.0,4004.9,0.002]
[1760545602255,3.13079066,4004.5,4004.4,1e-08]
[1760545602418,16.64550366,4004.5,4004.4,1e-08]
[1760545602605,11.45295566,4004.5,4004.4,1e-08]
[1760545602923,7.94790066,4004.5,4004.4,1e-08]
[1760545603326,7.53530066,4004.5,4004.4,1e-08]
[1760545603710,5.16259066,4004.5,4004.4,1e-08]
[1760545603911,8.55357466,4004.5,4004.4,1e-08]
[1760545604312,17.93807766,4004.5,4004.4,1e-08]
[1760545604618,18.24794356,4004.5,4004.4,1e-08]
[1760545604831,18.22807766,4004.5,4004.4,1e-08]
[1760545605148,20.87960112,4004.1,4001.6,0.4447]
[1760545605437,21.04153675,4004.1,4001.6,0.4447]
[1760545605636,21.32534612,4004.1,4001.6,0.4447]
[1760545605838,21.34533675,4004.1,4001.6,0.4447]
[1760545606347,21.34533675,4004.1,4001.5,0.2171]
[1760545606348,0.65366549,4003.7,4001.5,0.2171]
[1760545606583,0.6336,4002.8,4001.0,0.2131]
[1760545606733,0.1857,4003.1,4001.4,0.4447]
[1760545606933,2.5985,4003.0,4001.4,0.4447]
[1760545607134,2.49882005,4001.9,4001.4,0.4447]
[1760545607359,1.728,4002.4,4001.4,0.4447]
[1760545607360,2.49890644,4001.8,4001.4,0.4447]
[1760545607561,2.49890644,4001.8,4001.5,0.4447]
[1760545607861,0.6336,4002.3,4001.0,0.2131]
[1760545608031,0.6336,4001.9,4001.5,0.4447]
[1760545608232,1.728,4003.3,4001.6,0.4447]
[1760545608439,1.728,4003.5,4001.6,0.4447]
[1760545608440,2.49844155,4002.5,4001.7,2.49887691]
[1760545608664,2.4985603,4002.4,4001.6,2.94369852]
[1760545608863,0.6336,4003.1,4002.3,0.2171]
[1760545609067,0.6336,4002.8,4002.3,0.6618]
[1760545609268,2.49756487,4003.9,4002.4,0.4447]
[1760545609564,5.060036,4004.0,4002.4,2.94319109]
[1760545609765,2.3616,4003.8,4002.5,0.4447]
[1760545609967,2.3616,4003.8,4002.3,0.2171]
[1760545609968,0.6336,4003.6,4002.3,0.2171]
[1760545610136,0.2276,4003.7,4002.3,0.2171]
[1760545610137,0.6336,4003.4,4002.3,0.2171]
[1760545610331,6.9882624,4003.0,4002.0,0.2171]
[1760545610564,2.49863193,4002.2,4002.0,0.2171]
[1760545610864,0.6336,4002.4,4002.0,0.2171]
[1760545611031,2.49861608,4002.3,4002.0,0.2171]
[1760545611233,2.49861608,4002.3,4002.0,0.6618]
[1760545611435,0.6336,4002.8,4002.0,0.2171]
[1760545611660,1.728,4002.7,4001.5,0.4447]
[1760545611873,0.6336,4002.6,4001.5,0.4447]
[1760545612081,0.6336,4002.6,4000.0,0.164126]
[1760545612082,0.6336,4002.3,4000.8,0.4447]
[1760545612289,2.49900306,4001.6,4000.8,2.94418435]
[1760545612437,2.49900306,4001.6,4000.9,2.49943472]
[1760545612759,2.49920809,4001.3,4000.8,0.4447]
[1760545613131,2.49913615,4001.4,4000.5,0.002]
[1760545613334,0.6336,4001.4,4000.8,0.4447]
[1760545613650,0.6336,4002.0,4001.1,0.4447]
[1760545613852,0.6336,4001.6,4001.1,0.4447]
[1760545614098,0.6336,4001.6,4001.2,0.4447]
[1760545614270,0.6336,4001.4,4001.0,0.2131]
[1760545614473,3.13278193,4001.4,4001.0,0.6757]
[1760545614671,0.6336,4001.4,4001.0,0.6757]
[1760545615892,0.228,4002.3,4001.3,2.49916352]
[1760545616092,0.228,4002.3,4001.1,0.4626]
[1760545616093,2.49881394,4001.9,4001.1,0.4626]
[1760545616383,2.49881394,4001.9,4001.2,2.49924472]
[1760545616558,2.49876883,4002.0,4001.3,2.49918571]
[1760545616955,2.49876883,4002.0,4001.1,2.96190447]
[1760545617160,0.1248,4001.1,4001.0,2.71247515]
[1760545617591,2.49833258,4002.7,4001.3,2.49918776]
[1760545617760,2.49748018,4004.1,4001.0,0.2131]
[1760545617761,2.194,4003.8,4002.6,0.2149]
[1760545618089,2.49819168,4002.9,4002.6,0.2149]
[1760545618276,1.728,4003.1,4002.6,0.2149]
[1760545618477,2.72338157,4003.6,4002.6,0.2149]
[1760545618478,0.2256,4003.6,4002.6,0.2149]
[1760545618687,2.49801472,4003.2,4002.6,0.2149]
[1760545618986,2.49816432,4003.0,4002.6,0.2149]
[1760545619179,0.6336,4003.0,4002.6,0.2149]
[1760545619578,2.49813024,4003.0,4002.6,0.2149]
[1760545619779,2.49813917,4003.0,4002.6,0.2149]
[1760545619997,0.6336,4003.0,4002.6,0.2149]
[1760545620494,0.001,4003.2,4002.7,0.4626]
[1760545620790,0.001,4003.2,4003.1,2.712964]
[1760545621159,0.001,4003.2,4003.1,0.2149]
[1760545621379,0.001,4003.2,4003.1,0.6775]
[1760545621596,2.49823949,4002.9,4002.2,0.2149]
[1760545621806,0.6336,4003.1,4002.2,0.2149]
[1760545622128,0.6336,4003.1,4002.0,0.2149]
[1760545622305,2.49838928,4002.6,4002.0,0.2149]
[1760545622611,2.49849296,4002.5,4001.8,2.49883417]
[1760545623116,2.49856373,4002.3,4001.7,0.2149]
[1760545623327,0.2257,4002.5,4001.4,0.2149]
[1760545623624,0.6336,4001.4,4001.1,0.002]
[1760545623832,2.49924643,4001.3,4001.1,0.002]
[1760545623992,0.6336,4001.4,4001.1,0.002]
[1760545624386,0.6336,4001.7,4001.2,0.2149]
[1760545624623,0.6336,4002.0,4001.2,0.2149]
[1760545624774,0.6336,4001.8,4001.1,0.002]
[1760545624978,3.13285022,4001.2,4001.1,0.002]
[1760545625394,5.08665022,4001.2,4001.1,0.002]
[1760545627486,14.07850022,4001.2,4001.1,0.002]
[1760545627692,10.56949822,4001.2,4001.1,0.002]
[1760545627916,5.08665022,4001.2,4001.1,0.002]
[1760545628185,1.728,4001.2,4001.1,0.002]
[1760545628690,2.49868818,4002.1,4001.1,0.002]
[1760545628890,2.72505022,4001.2,4001.1,0.002]
[1760545629120,3.35865022,4001.2,4001.1,0.002]
[1760545629922,7.57065022,4001.2,4001.1,0.002]
[1760545630815,7.84133322,4001.2,4001.1,0.002]
[1760545631418,7.55389422,4001.2,4001.1,0.002]
[1760545631794,5.08665022,4001.2,4001.1,0.002]
[1760545632313,4.22725022,4001.2,4001.1,0.002]
[1760545632829,4.86085022,4001.2,4001.1,0.002]
[1760545633057,4.22725022,4001.2,4001.1,0.002]
[1760545633258,0.2279,4002.2,4001.1,0.2169]
[1760545633458,0.2279,4002.2,4001.1,0.6692]
[1760545633459,2.49890664,4001.8,4001.1,0.6692]
[1760545633759,6.886403,4002.6,4001.1,0.6692]
[1760545633962,6.886403,4002.6,4001.5,2.49905492]
[1760545633963,2.49852941,4002.4,4001.5,2.49905492]
[1760545634144,0.2322,4002.7,4001.1,0.2169]
[1760545634347,2.49858783,4002.3,4001.6,0.4523]
[1760545634552,0.2225,4002.9,4001.1,0.2169]
[1760545634860,0.6336,4002.1,4001.1,0.2169]
[1760545635051,0.6336,4001.5,4001.1,0.2169]
[1760545635247,0.6336,4001.6,4001.1,0.2169]
[1760545635447,0.6336,4001.6,4001.2,0.4523]
[1760545635647,0.6336,4001.6,4001.1,0.2169]
[1760545635648,0.6336,4001.7,4001.1,0.2169]
[1760545635852,0.6336,4001.7,4001.2,0.4523]
[1760545636151,2.49858773,4002.3,4001.3,2.95147601]
[1760545636337,2.49851992,4002.4,4001.7,2.49893365]
[1760545636542,2.49852029,4002.4,4001.7,0.4523]
[1760545636739,0.6336,4002.2,4001.5,2.49905651]
[1760545636931,0.6336,4002.2,4001.6,2.49896894]
[1760545637131,2.49872582,4002.1,4001.3,2.9514355]
[1760545637463,2.49876214,4002.0,4001.3,2.9514355]
[1760545637859,2.49868119,4002.2,4001.4,2.49910673]
[1760545638064,2.49868119,4002.2,4001.5,2.49904933]
[1760545638230,2.4986967,4002.1,4001.4,2.49912027]
[1760545638430,1.728,4002.1,4001.5,2.49906122]
[1760545638630,0.6336,4002.0,4001.1,0.2169]
[1760545638865,0.6336,4002.1,4001.1,0.2169]
[1760545639072,2.49925022,4001.2,4001.1,0.002]
[1760545639242,2.3616,4001.2,4001.1,0.002]
[1760545639447,4.86085022,4001.2,4001.1,0.002]
[1760545640171,0.2225,4002.9,4001.1,0.2169]
[1760545640472,0.24964181,4003.7,4002.8,0.2149]
[1760545640473,0.001,4003.7,4002.8,0.2149]
[1760545640670,2.49900941,4003.2,4002.8,0.2149]
[1760545640966,0.001,4003.2,4002.8,0.2149]
[1760545641542,0.001,4003.2,4003.1,2.498064]
[1760545641938,0.001,4003.2,4003.1,2.950364]
[1760545644571,0.001,4003.2,4003.1,2.97534464]
[1760545644883,0.001,4003.2,4003.1,13.02176433]
[1760545645183,0.001,4003.2,4003.1,15.60576433]
[1760545645586,0.001,4003.2,4003.1,2.950364]
[1760545646945,0.001,4003.2,4003.1,2.97534464]
[1760545647150,0.001,4003.2,4003.1,7.28634464]
[1760545647370,0.001,4003.2,4003.1,4.678364]
[1760545647877,0.001,4003.2,4003.1,7.261364]
[1760545648085,0.001,4003.2,4003.1,4.678364]
[1760545648285,0.001,4003.2,4003.1,2.950364]
[1760545648489,0.001,4003.2,4002.8,0.2149]
[1760545648692,0.001,4003.2,4002.9,2.49813296]
[1760545648855,0.001,4003.2,4002.5,0.6672]
[1760545648856,0.001,4003.2,4002.5,0.2149]
[1760545649188,0.1248,4002.5,4002.2,0.2149]
[1760545649397,0.1248,4002.5,4001.6,0.1248]
[1760545649398,0.1248,4002.0,4001.9,2.71370423]
[1760545649554,2.49867062,4002.2,4001.5,0.2149]
[1760545649901,2.49825196,4002.8,4001.6,0.47729]
[1760545650192,2.49825196,4002.8,4001.6,0.4523]
[1760545650193,2.3616,4002.8,4001.6,0.4523]
[1760545650400,2.4985452,4002.4,4001.6,2.49898608]
[1760545650557,0.4214,4002.3,4001.1,0.2169]
[1760545650757,0.4214,4002.3,4001.1,0.002]
[1760545650996,2.49896396,4001.7,4001.1,0.002]
[1760545651166,0.6336,4002.1,4001.1,0.002]
[1760545651357,0.1322,4001.7,4001.1,0.002]
[1760545651901,0.4214,4002.3,4001.1,0.002]
[1760545651902,0.1322,4002.2,4001.1,0.002]
[1760545652064,0.6336,4001.8,4001.2,0.2149]
[1760545652592,3.13247903,4001.8,4001.2,0.2149]
[1760545652793,0.6336,4001.7,4001.1,2.50126651]
[1760545652964,0.6336,4001.9,4001.1,0.2169]
[1760545653154,1.8602,4002.2,4001.5,2.4990608]
[1760545653354,0.1322,4002.2,4001.7,2.4989364]
[1760545653559,0.1351,4002.7,4001.7,0.4523]
[1760545653760,2.7201991,4003.7,4001.8,0.02498875]
[1760545654101,2.7201991,4003.7,4001.7,0.4523]
[1760545654102,2.49824821,4002.9,4002.1,2.49865869]
[1760545654258,2.72060713,4003.1,4002.3,2.49851813]
[1760545654454,1.728,4003.0,4002.3,2.49851813]
[1760545654659,0.2225,4003.1,4002.5,2.49839175]
[1760545654888,0.6336,4003.3,4002.2,0.2149]
[1760545655603,0.001,4003.2,4002.6,2.49837605]
[1760545655815,0.001,4003.2,4002.2,0.2149]
[1760545655961,0.001,4003.2,4002.9,2.49813234]
[1760545656367,0.001,4003.2,4002.4,2.49850089]
[1760545656671,0.001,4003.2,4002.8,2.49824135]
[1760545657104,0.001,4003.2,4002.3,2.93900251]
[1760545657287,0.001,4003.2,4002.6,2.49832566]
[1760545657479,0.001,4003.2,4002.8,2.49820761]
[1760545657806,0.001,4003.2,4002.2,0.2149]
[1760545657807,0.001,4003.2,4002.5,0.4405]
[1760545658002,0.001,4003.2,4002.7,2.49827136]
[1760545658191,0.001,4003.2,4002.2,0.2149]
[1760545658501,0.001,4003.2,4003.1,2.712964]
[1760545659005,0.001,4003.2,4003.1,3.153464]
[1760545659166,0.001,4003.2,4003.1,5.736464]
[1760545659765,0.001,4003.2,4003.1,4.881464]
[1760545660001,0.001,4003.2,4003.1,7.589264]
[1760545660185,0.001,4003.2,4003.1,5.006264]
[1760545660507,0.001,4003.2,4003.1,7.589264]
[1760545660867,0.001,4003.2,4003.1,5.006264]
[1760545661071,0.001,4003.2,4003.1,7.589264]
[1760545661606,0.001,4003.2,4003.1,17.92897278]
[1760545662494,0.001,4003.2,4003.1,15.34597278]
[1760545662678,0.001,4003.2,4003.1,17.92797278]
[1760545663512,0.001,4003.2,4003.1,15.34597278]
[1760545663693,0.001,4003.2,4003.1,17.92797278]
[1760545664020,0.1248,4004.2,4004.1,2.49744012]
[1760545664200,0.1248,4004.2,4004.1,2.71634012]
[1760545664410,2.4962935,4006.0,4005.2,2.49671934]
[1760545664614,1.728,4006.0,4004.7,2.49706594]
[1760545664782,0.6631,4006.1,4005.5,2.49651395]
[1760545664982,0.6631,4006.1,4004.5,2.93769066]
[1760545665189,0.1248,4005.2,4004.6,0.02497128]
[1760545665520,0.1248,4005.2,4005.1,2.71171655]
[1760545666083,0.1248,4005.2,4004.5,1.728]
[1760545666278,0.1248,4005.1,4004.6,0.4405]
[1760545666496,0.1248,4005.1,4005.0,2.4968789]
[1760545667252,0.2236,4006.3,4005.6,2.49648531]
[1760545667457,0.2236,4006.3,4005.0,0.4405]
[1760545667750,0.2236,4006.3,4005.8,2.49635539]
[1760545668052,0.1248,4005.7,4005.6,2.49650489]
[1760545668616,0.1248,4005.7,4005.6,2.93700489]
[1760545668844,0.1248,4005.7,4005.6,2.49650489]
[1760545669044,0.1248,4005.7,4005.2,0.4405]
[1760545669354,0.1248,4005.7,4005.4,2.49657475]
[1760545669653,0.2195,4005.8,4004.4,1.728]
[1760545669654,0.4415,4005.6,4004.9,2.49688453]
[1760545669855,0.4415,4005.6,4004.4,1.728]
[1760545669856,0.1248,4005.1,4005.0,2.49686854]
[1760545671256,0.1248,4005.1,4005.0,2.4968789]
[1760545673626,0.1248,4005.1,4004.9,2.49692673]
[1760545674049,0.1248,4005.1,4004.8,2.49698908]
[1760545674357,0.1248,4005.1,4004.6,2.49712526]
[1760545674557,0.4348,4005.4,4004.8,2.49698959]
[1760545674759,0.1248,4004.8,4004.7,2.49705078]
[1760545674957,0.1248,4004.8,4004.3,0.2149]
[1760545675164,0.1248,4004.8,4004.4,2.581]
[1760545675361,0.1248,4004.8,4004.7,2.49706594]
[1760545675563,0.1248,4004.8,4004.3,0.2149]
[1760545675765,0.3493,4005.5,4004.1,0.2189]
[1760545676063,2.49688107,4005.0,4004.1,2.71633424]
[1760545676360,0.1248,4004.2,4004.1,2.49743424]
[1760545676734,0.001,4005.1,4004.6,2.49712456]
[1760545676946,0.3503,4005.1,4004.6,2.49712456]
[1760545677469,0.3503,4005.1,4004.7,2.49706378]
[1760545677669,0.3503,4005.1,4004.6,2.49711328]
[1760545678554,0.1248,4004.6,4003.8,0.1248]
[1760545678765,0.1248,4004.6,4003.4,0.5653]
[1760545678965,0.1248,4003.8,4003.1,0.6574]
[1760545679140,0.1248,4003.8,4003.7,2.49768963]
[1760545679682,0.1248,4003.8,4003.4,2.49782729]
[1760545679882,0.2388,4003.8,4003.5,2.49776649]
[1760545680078,0.225,4003.9,4003.1,0.002]
[1760545680265,0.1248,4003.3,4003.2,2.49796042]
[1760545680779,0.1248,4003.3,4003.1,0.002]
[1760545680955,0.1248,4003.3,4003.1,2.50006365]
[1760545681162,0.1248,4003.3,4003.2,2.49800159]
[1760545681355,0.1248,4003.3,4003.1,0.002]
[1760545682080,0.1248,4003.3,4003.2,2.49800159]
[1760545682868,0.1248,4003.3,4003.2,2.5229816]
[1760545683079,0.1248,4003.3,4003.2,2.49800159]
[1760545683279,0.1248,4003.3,4003.1,0.02698064]
[1760545683448,0.1248,4003.3,4003.1,2.50005296]
[1760545683782,0.1248,4003.3,4003.2,2.49800159]
[1760545684484,0.225,4004.1,4003.6,2.4977333]
[1760545684682,0.4638,4004.7,4003.3,2.4979392]
[1760545684879,0.1248,4003.7,4003.6,2.49775202]
[1760545685289,0.1248,4003.7,4003.6,2.93825202]
[1760545685657,0.225,4004.7,4004.3,2.49729536]
[1760545685849,0.4638,4004.7,4004.2,2.49735723]
[1760545686222,0.1248,4003.8,4003.5,2.49776996]
[1760545686356,0.2187,4005.4,4005.0,2.4968789]
[1760545686547,2.9483607,4006.4,4005.0,2.4968789]
[1760545686782,2.9483607,4006.4,4005.0,13.33515646]
[1760545686783,0.4523,4006.4,4005.0,13.33515646]
[1760545687049,0.2258,4006.6,4005.0,13.31018768]
[1760545687266,0.1248,4005.8,4005.0,13.43498768]
[1760545687599,0.1248,4005.8,4005.0,15.16298768]
[1760545687757,0.2187,4006.9,4006.8,2.49575721]
[1760545687955,0.2187,4007.2,4006.3,0.2149]
[1760545688271,0.2187,4006.4,4005.6,0.2149]
[1760545688749,0.2591,4007.1,4005.6,0.2149]
[1760545688750,0.2187,4006.7,4005.6,0.2149]
[1760545688953,0.2187,4006.7,4006.2,2.49612365]
[1760545689149,0.2187,4006.7,4006.1,2.49618196]
[1760545689399,0.2187,4007.2,4006.5,2.49589496]
[1760545689598,0.6336,4007.1,4006.5,2.49589496]
[1760545689776,0.6336,4007.1,4005.7,2.97004256]
[1760545689777,0.6336,4007.1,4006.4,2.49600116]
[1760545690095,0.6336,4007.1,4006.2,2.4960821]
[1760545690283,1.728,4007.0,4006.3,2.49604328]
[1760545690483,0.2187,4006.9,4005.7,0.4736]
[1760545690687,0.2187,4006.9,4006.6,2.49583828]
[1760545691068,0.2187,4007.2,4005.7,0.4736]
[1760545691266,0.6336,4007.5,4006.7,2.49576598]
[1760545691576,4.85694368,4007.5,4006.7,2.49576598]
[1760545692106,0.4778,4007.4,4005.8,0.4736]